[Event "Titled Tuesday Blitz May 16 Early 2023"]
[White "Pakleza, Zbigniew"]
[Black "Asavasaetakul, Chawit"]
[WhiteFideId "1119290"]
[BlackFideId "6204856"]
[WhiteElo "2410"]
[BlackElo "1919"]
[Result "1-0"]
[Round "05"]
[TimeControl "180+2"]
[Date "2023.05.16"]
[WhiteClock "0:00:03"]
[BlackClock "0:00:13"]

1. d4 {[%clk 0:03:00]}  d5 {[%clk 0:02:56]} 2. Bf4 {[%clk 0:02:57]}  c6 {[%clk 0:02:56]} 3. e3 {[%clk 0:02:57]}  Qb6 {[%clk 0:02:56]} 4. Qc1 {[%clk 0:02:57]}  Bf5 {[%clk 0:02:57]} 5. c4 {[%clk 0:02:57]}  e6 {[%clk 0:02:57]} 6. Nc3 {[%clk 0:02:58]}  Nd7 {[%clk 0:02:57]} 7. Nf3 {[%clk 0:02:58]}  Ngf6 {[%clk 0:02:58]} 8. h3 {[%clk 0:02:58]}  Be7 {[%clk 0:02:57]} 9. c5 {[%clk 0:02:58]}  Qd8 {[%clk 0:02:57]} 10. b4 {[%clk 0:02:58]}  Ne4 {[%clk 0:02:57]} 11. Be2 {[%clk 0:02:47]}  O-O {[%clk 0:02:57]} 12. O-O {[%clk 0:02:47]}  Re8 {[%clk 0:02:57]} 13. Nxe4 {[%clk 0:02:29]}  Bxe4 {[%clk 0:02:57]} 14. Nd2 {[%clk 0:02:30]}  Bg6 {[%clk 0:02:56]} 15. Bh2 {[%clk 0:02:30]}  Nf6 {[%clk 0:02:10]} 16. b5 {[%clk 0:02:18]}  Ne4 {[%clk 0:01:43]} 17. Nxe4 {[%clk 0:02:03]}  Bxe4 {[%clk 0:01:28]} 18. bxc6 {[%clk 0:02:02]}  bxc6 {[%clk 0:01:28]} 19. Ba6 {[%clk 0:01:58]}  Qd7 {[%clk 0:01:22]} 20. Qb2 {[%clk 0:01:41]}  f6 {[%clk 0:00:44]} 21. Qb7 {[%clk 0:01:28]}  Rad8 {[%clk 0:00:44]} 22. Rac1 {[%clk 0:01:20]}  e5 {[%clk 0:00:42]} 23. dxe5 {[%clk 0:01:00]}  Qe6 {[%clk 0:00:36]} 24. exf6 {[%clk 0:00:47]}  Rd7 {[%clk 0:00:32]} 25. Qb2 {[%clk 0:00:24]}  Bxf6 {[%clk 0:00:32]} 26. Qe2 {[%clk 0:00:25]}  Rf7 {[%clk 0:00:26]} 27. Bd3 {[%clk 0:00:22]}  d4 {[%clk 0:00:21]} 28. Rfe1 {[%clk 0:00:10]}  Qd5 {[%clk 0:00:19]} 29. Bc4 {[%clk 0:00:09]}  d3 {[%clk 0:00:15]} 30. Bxd5 {[%clk 0:00:07]}  dxe2 {[%clk 0:00:15]} 31. Bxf7+ {[%clk 0:00:08]}  Kxf7 {[%clk 0:00:15]} 32. Rxe2 {[%clk 0:00:08]}  Bd5 {[%clk 0:00:15]} 33. Rd2 {[%clk 0:00:07]}  Re4 {[%clk 0:00:14]} 34. f3 {[%clk 0:00:06]}  Ra4 {[%clk 0:00:13]} 35. Rcc2 {[%clk 0:00:03]}  Ke6 {[%clk 0:00:13]} 36. e4 {[%clk 0:00:03]}  Bc4 {[%clk 0:00:13]} 37. Rd6+ {[%clk 0:00:04]}  Ke7 {[%clk 0:00:13]} 38. Rxc6 {[%clk 0:00:04]}  Bb5 {[%clk 0:00:14]} 39. Rc7+ {[%clk 0:00:04]}  Ke6 {[%clk 0:00:15]} 40. c6 {[%clk 0:00:04]}  Bd4+ {[%clk 0:00:14]} 41. Kh1 {[%clk 0:00:05]}  Rb4 {[%clk 0:00:15]} 42. Rc1 {[%clk 0:00:04]}  Be3 {[%clk 0:00:14]} 43. Re1 {[%clk 0:00:04]}  Bf2 {[%clk 0:00:14]} 44. Rd1 {[%clk 0:00:03]}  Be2 {[%clk 0:00:13]} 45. Rd6# {[%clk 0:00:03]} 1-0


[Site "https://www.chess.com"]

[Event "Titled Tuesday Blitz May 16 Early 2023"]
[White "Aydincelebi, Kagan"]
[Black "Colbow, Collin"]
[WhiteFideId "6361102"]
[BlackFideId "16201132"]
[WhiteElo "2180"]
[BlackElo "2351"]
[Result "1-0"]
[Round "05"]
[TimeControl "180+2"]
[Date "2023.05.16"]
[WhiteClock "0:00:18"]
[BlackClock "0:00:00"]

1. e4 {[%clk 0:03:00]}  d5 {[%clk 0:02:58]} 2. exd5 {[%clk 0:03:01]}  Qxd5 {[%clk 0:02:59]} 3. Nc3 {[%clk 0:03:02]}  Qd8 {[%clk 0:03:00]} 4. d4 {[%clk 0:03:02]}  Nf6 {[%clk 0:02:59]} 5. Nf3 {[%clk 0:03:03]}  Bg4 {[%clk 0:02:59]} 6. h3 {[%clk 0:03:01]}  Bxf3 {[%clk 0:02:59]} 7. Qxf3 {[%clk 0:03:01]}  c6 {[%clk 0:02:59]} 8. Be3 {[%clk 0:03:01]}  e6 {[%clk 0:02:59]} 9. O-O-O {[%clk 0:03:02]}  Nbd7 {[%clk 0:03:00]} 10. g4 {[%clk 0:03:02]}  Nb6 {[%clk 0:02:58]} 11. g5 {[%clk 0:03:02]}  Nfd5 {[%clk 0:02:58]} 12. Ne4 {[%clk 0:03:02]}  Nxe3 {[%clk 0:02:39]} 13. fxe3 {[%clk 0:03:03]}  Be7 {[%clk 0:02:34]} 14. h4 {[%clk 0:03:03]}  Qd5 {[%clk 0:02:16]} 15. Kb1 {[%clk 0:03:00]}  Nc4 {[%clk 0:02:03]} 16. Bxc4 {[%clk 0:02:45]}  Qxc4 {[%clk 0:02:04]} 17. Rhf1 {[%clk 0:02:45]}  Rf8 {[%clk 0:02:02]} 18. Qh5 {[%clk 0:02:39]}  h6 {[%clk 0:01:45]} 19. gxh6 {[%clk 0:02:29]}  g6 {[%clk 0:01:06]} 20. Qe5 {[%clk 0:02:25]}  O-O-O {[%clk 0:01:00]} 21. h7 {[%clk 0:02:11]}  Qd5 {[%clk 0:00:50]} 22. Qxd5 {[%clk 0:01:54]}  cxd5 {[%clk 0:00:51]} 23. Ng5 {[%clk 0:01:52]}  Bxg5 {[%clk 0:00:38]} 24. hxg5 {[%clk 0:01:52]}  Rd7 {[%clk 0:00:35]} 25. Rf4 {[%clk 0:01:48]}  Rh8 {[%clk 0:00:31]} 26. Rh1 {[%clk 0:01:47]}  Kd8 {[%clk 0:00:31]} 27. Kc1 {[%clk 0:01:45]}  Ke8 {[%clk 0:00:29]} 28. Kd2 {[%clk 0:01:45]}  f5 {[%clk 0:00:24]} 29. gxf6 {[%clk 0:01:35]}  Rdxh7 {[%clk 0:00:24]} 30. Rg1 {[%clk 0:01:34]}  Kf7 {[%clk 0:00:24]} 31. Kd3 {[%clk 0:01:34]}  Rh2 {[%clk 0:00:20]} 32. Rfg4 {[%clk 0:01:22]}  Rc8 {[%clk 0:00:16]} 33. c3 {[%clk 0:01:07]}  Rg8 {[%clk 0:00:15]} 34. Rf1 {[%clk 0:01:01]}  Rxb2 {[%clk 0:00:14]} 35. Rh4 {[%clk 0:01:02]}  g5 {[%clk 0:00:04]} 36. Rh7+ {[%clk 0:01:02]}  Kg6 {[%clk 0:00:05]} 37. Re7 {[%clk 0:00:58]}  Rb6 {[%clk 0:00:03]} 38. e4 {[%clk 0:00:47]}  dxe4+ {[%clk 0:00:04]} 39. Kxe4 {[%clk 0:00:48]}  Rc6 {[%clk 0:00:04]} 40. Kd3 {[%clk 0:00:39]}  Rf8 {[%clk 0:00:04]} 41. Rg7+ {[%clk 0:00:39]}  Kh5 {[%clk 0:00:04]} 42. f7 {[%clk 0:00:39]}  Kg4 {[%clk 0:00:02]} 43. Rg1+ {[%clk 0:00:37]}  Kf4 {[%clk 0:00:02]} 44. R1xg5 {[%clk 0:00:35]}  Rxf7 {[%clk 0:00:02]} 45. Rxf7+ {[%clk 0:00:34]}  Kxg5 {[%clk 0:00:03]} 46. Rxb7 {[%clk 0:00:35]}  Ra6 {[%clk 0:00:03]} 47. Rb2 {[%clk 0:00:31]}  Kf6 {[%clk 0:00:03]} 48. Ke4 {[%clk 0:00:28]}  Ke7 {[%clk 0:00:04]} 49. c4 {[%clk 0:00:28]}  Kd6 {[%clk 0:00:03]} 50. c5+ {[%clk 0:00:28]}  Kc6 {[%clk 0:00:04]} 51. Ke5 {[%clk 0:00:28]}  Ra4 {[%clk 0:00:04]} 52. Rh2 {[%clk 0:00:21]}  a5 {[%clk 0:00:02]} 53. Rh6 {[%clk 0:00:22]}  Kd7 {[%clk 0:00:01]} 54. Rxe6 {[%clk 0:00:21]}  Rxa2 {[%clk 0:00:00]} 55. Kd5 {[%clk 0:00:18]} 1-0


[Site "https://www.chess.com"]

[Event "Titled Tuesday Blitz May 16 Early 2023"]
[White "Bryakin, Mikhail"]
[Black "Baghdasaryan, Vahe"]
[WhiteFideId "4165314"]
[BlackFideId "13303139"]
[WhiteElo "2467"]
[BlackElo "2216"]
[Result "1-0"]
[Round "05"]
[TimeControl "180+2"]
[Date "2023.05.16"]
[WhiteClock "0:00:11"]
[BlackClock "0:00:04"]

1. e4 {[%clk 0:02:55]}  c5 {[%clk 0:02:59]} 2. Nf3 {[%clk 0:02:49]}  Nc6 {[%clk 0:02:55]} 3. Bb5 {[%clk 0:02:48]}  d6 {[%clk 0:02:55]} 4. O-O {[%clk 0:02:40]}  Bd7 {[%clk 0:02:54]} 5. Re1 {[%clk 0:02:39]}  a6 {[%clk 0:02:52]} 6. Bf1 {[%clk 0:02:38]}  Nf6 {[%clk 0:02:51]} 7. c3 {[%clk 0:02:30]}  Bg4 {[%clk 0:02:51]} 8. h3 {[%clk 0:02:29]}  Bxf3 {[%clk 0:02:51]} 9. Qxf3 {[%clk 0:02:29]}  e6 {[%clk 0:02:52]} 10. g3 {[%clk 0:02:23]}  Be7 {[%clk 0:02:49]} 11. Bg2 {[%clk 0:02:22]}  O-O {[%clk 0:02:49]} 12. Qe2 {[%clk 0:02:19]}  d5 {[%clk 0:02:46]} 13. e5 {[%clk 0:02:09]}  Nd7 {[%clk 0:02:45]} 14. f4 {[%clk 0:02:08]}  c4 {[%clk 0:02:45]} 15. d4 {[%clk 0:02:03]}  cxd3 {[%clk 0:02:43]} 16. Qxd3 {[%clk 0:02:04]}  b5 {[%clk 0:02:23]} 17. Kh2 {[%clk 0:02:01]}  Nc5 {[%clk 0:02:20]} 18. Qe2 {[%clk 0:01:55]}  b4 {[%clk 0:02:13]} 19. Be3 {[%clk 0:01:50]}  Rc8 {[%clk 0:02:09]} 20. Nd2 {[%clk 0:01:38]}  bxc3 {[%clk 0:02:09]} 21. bxc3 {[%clk 0:01:39]}  Na4 {[%clk 0:01:53]} 22. Rac1 {[%clk 0:01:31]}  Na5 {[%clk 0:01:49]} 23. Bd4 {[%clk 0:01:24]}  Nc4 {[%clk 0:01:46]} 24. Nb3 {[%clk 0:01:16]}  Nc5 {[%clk 0:01:29]} 25. g4 {[%clk 0:01:11]}  Qd7 {[%clk 0:01:29]} 26. Rf1 {[%clk 0:01:10]}  Qa4 {[%clk 0:01:29]} 27. Nxc5 {[%clk 0:01:09]}  Bxc5 {[%clk 0:01:29]} 28. f5 {[%clk 0:01:09]}  Bxd4 {[%clk 0:01:25]} 29. cxd4 {[%clk 0:01:10]}  Rb8 {[%clk 0:01:26]} 30. fxe6 {[%clk 0:00:58]}  fxe6 {[%clk 0:01:25]} 31. g5 {[%clk 0:00:58]}  Qa3 {[%clk 0:01:19]} 32. Qg4 {[%clk 0:00:53]}  Qe7 {[%clk 0:01:09]} 33. h4 {[%clk 0:00:33]}  Rxf1 {[%clk 0:01:07]} 34. Bxf1 {[%clk 0:00:30]}  Rb2+ {[%clk 0:01:06]} 35. Kh3 {[%clk 0:00:27]}  Rxa2 {[%clk 0:00:58]} 36. Bxc4 {[%clk 0:00:23]}  dxc4 {[%clk 0:00:49]} 37. Rc3 {[%clk 0:00:12]}  Ra3 {[%clk 0:00:34]} 38. Qf3 {[%clk 0:00:12]}  Rxc3 {[%clk 0:00:28]} 39. Qxc3 {[%clk 0:00:13]}  Qc7 {[%clk 0:00:28]} 40. h5 {[%clk 0:00:14]}  g6 {[%clk 0:00:28]} 41. h6 {[%clk 0:00:14]}  a5 {[%clk 0:00:27]} 42. Kh4 {[%clk 0:00:11]}  Qc6 {[%clk 0:00:19]} 43. Kg3 {[%clk 0:00:11]}  a4 {[%clk 0:00:18]} 44. Qa3 {[%clk 0:00:10]}  c3 {[%clk 0:00:18]} 45. Qe7 {[%clk 0:00:10]}  Qc7 {[%clk 0:00:03]} 46. Qxc7 {[%clk 0:00:10]}  c2 {[%clk 0:00:04]} 47. Qg7# {[%clk 0:00:11]} 1-0


[Site "https://www.chess.com"]

[Event "Titled Tuesday Blitz May 16 Early 2023"]
[White "Demin, Vladimir"]
[Black "Sieciechowicz, Marcin"]
[WhiteFideId "4167457"]
[BlackFideId "1130170"]
[WhiteElo "2546"]
[BlackElo "2302"]
[Result "0-1"]
[Round "05"]
[TimeControl "180+2"]
[Date "2023.05.16"]
[WhiteClock "0:00:42"]
[BlackClock "0:01:04"]

1. d4 {[%clk 0:03:00]}  d5 {[%clk 0:03:00]} 2. Nc3 {[%clk 0:02:59]}  c6 {[%clk 0:03:00]} 3. Bf4 {[%clk 0:02:57]}  Nf6 {[%clk 0:03:00]} 4. e3 {[%clk 0:02:57]}  Bg4 {[%clk 0:03:00]} 5. f3 {[%clk 0:02:56]}  Bh5 {[%clk 0:02:59]} 6. g4 {[%clk 0:02:56]}  Bg6 {[%clk 0:02:59]} 7. h4 {[%clk 0:02:57]}  h5 {[%clk 0:03:00]} 8. g5 {[%clk 0:02:57]}  Nfd7 {[%clk 0:03:00]} 9. Bd3 {[%clk 0:02:57]}  Bxd3 {[%clk 0:02:59]} 10. Qxd3 {[%clk 0:02:58]}  g6 {[%clk 0:02:56]} 11. O-O-O {[%clk 0:02:55]}  Bg7 {[%clk 0:02:56]} 12. e4 {[%clk 0:02:55]}  e6 {[%clk 0:02:56]} 13. Nge2 {[%clk 0:02:55]}  O-O {[%clk 0:02:54]} 14. exd5 {[%clk 0:02:45]}  cxd5 {[%clk 0:02:49]} 15. Nb5 {[%clk 0:02:45]}  Na6 {[%clk 0:02:41]} 16. Bd6 {[%clk 0:02:17]}  Re8 {[%clk 0:02:41]} 17. f4 {[%clk 0:02:11]}  Nb6 {[%clk 0:02:41]} 18. b3 {[%clk 0:02:05]}  Qd7 {[%clk 0:02:40]} 19. Ng1 {[%clk 0:01:55]}  Rac8 {[%clk 0:02:39]} 20. Nf3 {[%clk 0:01:55]}  Nc4 {[%clk 0:02:36]} 21. bxc4 {[%clk 0:01:46]}  dxc4 {[%clk 0:02:37]} 22. Qa3 {[%clk 0:01:40]}  Qxb5 {[%clk 0:02:36]} 23. Ne5 {[%clk 0:01:33]}  Red8 {[%clk 0:02:29]} 24. d5 {[%clk 0:01:23]}  exd5 {[%clk 0:02:16]} 25. f5 {[%clk 0:01:23]}  c3 {[%clk 0:01:42]} 26. f6 {[%clk 0:01:07]}  Rxd6 {[%clk 0:01:26]} 27. fxg7 {[%clk 0:01:05]}  Rb6 {[%clk 0:01:25]} 28. Qb3 {[%clk 0:00:58]}  Qc5 {[%clk 0:01:14]} 29. Rxd5 {[%clk 0:00:52]}  Qe3+ {[%clk 0:01:11]} 30. Kb1 {[%clk 0:00:51]}  Rxb3+ {[%clk 0:01:08]} 31. axb3 {[%clk 0:00:42]}  Nb4 {[%clk 0:01:04]} 0-1


[Site "https://www.chess.com"]

[Event "Titled Tuesday Blitz May 16 Early 2023"]
[White "Hirneise, Jens"]
[Black "Postny, Evgeny"]
[WhiteFideId "24614734"]
[BlackFideId "2804344"]
[WhiteElo "2345"]
[BlackElo "2504"]
[Result "0-1"]
[Round "05"]
[TimeControl "180+2"]
[Date "2023.05.16"]
[WhiteClock "0:00:25"]
[BlackClock "0:00:17"]

1. d4 {[%clk 0:03:00]}  c5 {[%clk 0:02:57]} 2. e3 {[%clk 0:02:56]}  g6 {[%clk 0:02:57]} 3. Nf3 {[%clk 0:02:56]}  Bg7 {[%clk 0:02:57]} 4. Be2 {[%clk 0:02:56]}  Nf6 {[%clk 0:02:57]} 5. O-O {[%clk 0:02:56]}  O-O {[%clk 0:02:57]} 6. b3 {[%clk 0:02:56]}  cxd4 {[%clk 0:02:55]} 7. exd4 {[%clk 0:02:55]}  d5 {[%clk 0:02:55]} 8. Bb2 {[%clk 0:02:47]}  Nc6 {[%clk 0:02:55]} 9. Re1 {[%clk 0:02:44]}  Bf5 {[%clk 0:02:55]} 10. Nbd2 {[%clk 0:02:43]}  Nb4 {[%clk 0:02:53]} 11. Rc1 {[%clk 0:02:11]}  Nxa2 {[%clk 0:02:50]} 12. Ra1 {[%clk 0:02:10]}  Nb4 {[%clk 0:02:50]} 13. Rc1 {[%clk 0:02:09]}  Rc8 {[%clk 0:02:49]} 14. c3 {[%clk 0:02:09]}  Na2 {[%clk 0:02:40]} 15. Ra1 {[%clk 0:02:09]}  Nxc3 {[%clk 0:02:40]} 16. Bxc3 {[%clk 0:02:09]}  Rxc3 {[%clk 0:02:41]} 17. Rxa7 {[%clk 0:02:09]}  Qb6 {[%clk 0:02:37]} 18. Qa1 {[%clk 0:02:06]}  Rfc8 {[%clk 0:02:25]} 19. Ra8 {[%clk 0:01:57]}  Rxa8 {[%clk 0:02:21]} 20. Qxa8+ {[%clk 0:01:58]}  Rc8 {[%clk 0:02:21]} 21. Qa3 {[%clk 0:01:55]}  Bf8 {[%clk 0:02:19]} 22. Qa1 {[%clk 0:01:40]}  Ne4 {[%clk 0:02:15]} 23. Rc1 {[%clk 0:01:37]}  Nxd2 {[%clk 0:02:09]} 24. Nxd2 {[%clk 0:01:38]}  Rxc1+ {[%clk 0:02:05]} 25. Qxc1 {[%clk 0:01:39]}  Qxd4 {[%clk 0:02:06]} 26. Nf3 {[%clk 0:01:37]}  Qe4 {[%clk 0:01:56]} 27. Bf1 {[%clk 0:01:37]}  Qb1 {[%clk 0:01:52]} 28. Qc3 {[%clk 0:01:35]}  Bg7 {[%clk 0:01:45]} 29. Qe3 {[%clk 0:01:34]}  Bf6 {[%clk 0:01:16]} 30. h3 {[%clk 0:01:31]}  Kg7 {[%clk 0:01:12]} 31. g4 {[%clk 0:01:28]}  Be4 {[%clk 0:01:10]} 32. g5 {[%clk 0:01:27]}  Ba1 {[%clk 0:01:06]} 33. Nd2 {[%clk 0:01:22]}  Qc2 {[%clk 0:01:01]} 34. Nxe4 {[%clk 0:01:22]}  Qxe4 {[%clk 0:00:59]} 35. Qxe4 {[%clk 0:01:22]}  dxe4 {[%clk 0:00:59]} 36. Bg2 {[%clk 0:01:22]}  e3 {[%clk 0:00:36]} 37. fxe3 {[%clk 0:01:22]}  Be5 {[%clk 0:00:36]} 38. Kf2 {[%clk 0:01:14]}  b6 {[%clk 0:00:36]} 39. h4 {[%clk 0:01:13]}  h6 {[%clk 0:00:32]} 40. gxh6+ {[%clk 0:01:05]}  Kxh6 {[%clk 0:00:33]} 41. Bd5 {[%clk 0:01:05]}  e6 {[%clk 0:00:29]} 42. Bc6 {[%clk 0:01:04]}  Bd6 {[%clk 0:00:27]} 43. Kg2 {[%clk 0:00:59]}  Bb4 {[%clk 0:00:26]} 44. Kh3 {[%clk 0:00:54]}  Kg7 {[%clk 0:00:23]} 45. e4 {[%clk 0:00:51]}  Kf6 {[%clk 0:00:22]} 46. Kg4 {[%clk 0:00:51]}  Ke5 {[%clk 0:00:18]} 47. Be8 {[%clk 0:00:44]}  f5+ {[%clk 0:00:17]} 48. exf5 {[%clk 0:00:43]}  gxf5+ {[%clk 0:00:18]} 49. Kf3 {[%clk 0:00:39]}  Be7 {[%clk 0:00:16]} 50. h5 {[%clk 0:00:39]}  Bg5 {[%clk 0:00:17]} 51. Bd7 {[%clk 0:00:38]}  Bh6 {[%clk 0:00:15]} 52. Bc8 {[%clk 0:00:38]}  Kf6 {[%clk 0:00:15]} 53. Bd7 {[%clk 0:00:38]}  e5 {[%clk 0:00:16]} 54. Bc6 {[%clk 0:00:32]}  e4+ {[%clk 0:00:16]} 55. Ke2 {[%clk 0:00:29]}  Ke5 {[%clk 0:00:17]} 56. Bb7 {[%clk 0:00:29]}  f4 {[%clk 0:00:17]} 57. Bc6 {[%clk 0:00:28]}  f3+ {[%clk 0:00:17]} 58. Kf1 {[%clk 0:00:26]}  Kf4 {[%clk 0:00:18]} 59. Bb5 {[%clk 0:00:25]}  e3 {[%clk 0:00:18]} 60. Bc4 {[%clk 0:00:25]}  Bg5 {[%clk 0:00:17]} 61. Bb5 {[%clk 0:00:25]}  e2+ {[%clk 0:00:17]} 62. Bxe2 {[%clk 0:00:25]}  fxe2+ {[%clk 0:00:17]} 63. Kxe2 {[%clk 0:00:26]}  Kg4 {[%clk 0:00:16]} 64. Kd3 {[%clk 0:00:24]}  Kxh5 {[%clk 0:00:16]} 65. Kc4 {[%clk 0:00:25]}  Be3 {[%clk 0:00:16]} 66. Kd3 {[%clk 0:00:25]}  Bg1 {[%clk 0:00:15]} 67. Kc4 {[%clk 0:00:25]}  Kg4 {[%clk 0:00:16]} 68. b4 {[%clk 0:00:25]}  Kf5 {[%clk 0:00:16]} 69. b5 {[%clk 0:00:26]}  Ke4 {[%clk 0:00:16]} 70. Kb3 {[%clk 0:00:25]}  Kd4 {[%clk 0:00:17]} 0-1


[Site "https://www.chess.com"]

[Event "Titled Tuesday Blitz May 16 Early 2023"]
[White "Osinovsky, Stepan"]
[Black "Papasimakopoulos, Alexandros"]
[WhiteFideId "4157354"]
[BlackFideId "4244125"]
[WhiteElo "2222"]
[BlackElo "2359"]
[Result "0-1"]
[Round "05"]
[TimeControl "180+2"]
[Date "2023.05.16"]
[WhiteClock "0:00:00"]
[BlackClock "0:01:15"]

1. Nf3 {[%clk 0:03:00]}  f5 {[%clk 0:02:52]} 2. g3 {[%clk 0:03:01]}  Nf6 {[%clk 0:02:52]} 3. Bg2 {[%clk 0:03:02]}  g6 {[%clk 0:02:53]} 4. O-O {[%clk 0:03:03]}  Bg7 {[%clk 0:02:54]} 5. d3 {[%clk 0:03:04]}  O-O {[%clk 0:02:54]} 6. Nbd2 {[%clk 0:03:04]}  d6 {[%clk 0:02:55]} 7. e4 {[%clk 0:03:04]}  e5 {[%clk 0:02:56]} 8. c3 {[%clk 0:03:03]}  Nc6 {[%clk 0:02:56]} 9. a4 {[%clk 0:03:03]}  Kh8 {[%clk 0:02:45]} 10. a5 {[%clk 0:03:01]}  a6 {[%clk 0:02:45]} 11. Re1 {[%clk 0:02:50]}  f4 {[%clk 0:02:35]} 12. d4 {[%clk 0:02:49]}  fxg3 {[%clk 0:02:28]} 13. hxg3 {[%clk 0:02:35]}  Bg4 {[%clk 0:02:28]} 14. Qb3 {[%clk 0:02:34]}  Rb8 {[%clk 0:02:20]} 15. d5 {[%clk 0:02:08]}  Ne7 {[%clk 0:02:09]} 16. Ng5 {[%clk 0:02:09]}  h6 {[%clk 0:02:00]} 17. Ne6 {[%clk 0:02:08]}  Bxe6 {[%clk 0:02:00]} 18. dxe6 {[%clk 0:02:09]}  Nc6 {[%clk 0:01:43]} 19. Nc4 {[%clk 0:02:05]}  Qe8 {[%clk 0:01:37]} 20. Ne3 {[%clk 0:02:02]}  Nd8 {[%clk 0:01:37]} 21. Bh3 {[%clk 0:01:30]}  Nxe4 {[%clk 0:01:30]} 22. e7 {[%clk 0:00:37]}  Qxe7 {[%clk 0:01:30]} 23. Nd5 {[%clk 0:00:37]}  Qf7 {[%clk 0:01:30]} 24. Rxe4 {[%clk 0:00:19]}  c6 {[%clk 0:01:28]} 25. Re2 {[%clk 0:00:06]}  cxd5 {[%clk 0:01:16]} 26. Bg2 {[%clk 0:00:03]}  e4 {[%clk 0:01:17]} 27. Be3 {[%clk 0:00:00]}  Nc6 {[%clk 0:01:15]} 0-1


[Site "https://www.chess.com"]

[Event "Titled Tuesday Blitz May 16 Early 2023"]
[White "Bettalli, Francesco"]
[Black "Arabidze, Meri"]
[WhiteFideId "2816453"]
[BlackFideId "13604040"]
[WhiteElo "2216"]
[BlackElo "2405"]
[Result "1-0"]
[Round "05"]
[TimeControl "180+2"]
[Date "2023.05.16"]
[WhiteClock "0:00:31"]
[BlackClock "0:00:00"]

1. d4 {[%clk 0:03:00]}  d5 {[%clk 0:02:55]} 2. Nc3 {[%clk 0:03:01]}  c6 {[%clk 0:02:53]} 3. Bf4 {[%clk 0:02:59]}  Nf6 {[%clk 0:02:51]} 4. a3 {[%clk 0:02:58]}  Nbd7 {[%clk 0:02:50]} 5. e3 {[%clk 0:02:55]}  Nb6 {[%clk 0:02:48]} 6. Nf3 {[%clk 0:02:55]}  Bg4 {[%clk 0:02:47]} 7. Be2 {[%clk 0:02:55]}  e6 {[%clk 0:02:47]} 8. O-O {[%clk 0:02:55]}  Be7 {[%clk 0:02:47]} 9. Ne5 {[%clk 0:02:55]}  Bxe2 {[%clk 0:02:46]} 10. Qxe2 {[%clk 0:02:56]}  O-O {[%clk 0:02:46]} 11. f3 {[%clk 0:02:57]}  Nfd7 {[%clk 0:02:41]} 12. g4 {[%clk 0:02:56]}  Nxe5 {[%clk 0:02:41]} 13. Bxe5 {[%clk 0:02:55]}  Nc4 {[%clk 0:02:40]} 14. b3 {[%clk 0:02:56]}  Nxe5 {[%clk 0:02:40]} 15. dxe5 {[%clk 0:02:57]}  f6 {[%clk 0:02:32]} 16. exf6 {[%clk 0:02:50]}  Bxf6 {[%clk 0:02:32]} 17. Qd3 {[%clk 0:02:51]}  e5 {[%clk 0:02:28]} 18. Rad1 {[%clk 0:02:51]}  Qe7 {[%clk 0:02:17]} 19. e4 {[%clk 0:02:50]}  d4 {[%clk 0:02:11]} 20. Ne2 {[%clk 0:02:51]}  Bg5 {[%clk 0:02:11]} 21. Ng3 {[%clk 0:02:50]}  g6 {[%clk 0:02:07]} 22. Kg2 {[%clk 0:02:49]}  c5 {[%clk 0:02:03]} 23. c4 {[%clk 0:02:32]}  Kg7 {[%clk 0:01:59]} 24. b4 {[%clk 0:02:32]}  cxb4 {[%clk 0:01:54]} 25. axb4 {[%clk 0:02:33]}  Qxb4 {[%clk 0:01:54]} 26. Rb1 {[%clk 0:02:34]}  Qe7 {[%clk 0:01:54]} 27. Rb5 {[%clk 0:02:34]}  Rf7 {[%clk 0:01:43]} 28. Ne2 {[%clk 0:02:33]}  Be3 {[%clk 0:01:38]} 29. c5 {[%clk 0:02:30]}  Raf8 {[%clk 0:01:37]} 30. Nc3 {[%clk 0:02:19]}  Qg5 {[%clk 0:01:29]} 31. Nd5 {[%clk 0:02:12]}  h5 {[%clk 0:01:19]} 32. h3 {[%clk 0:01:48]}  Bf4 {[%clk 0:01:11]} 33. Rbb1 {[%clk 0:01:40]}  Kh7 {[%clk 0:01:04]} 34. Qe2 {[%clk 0:01:33]}  Rc8 {[%clk 0:00:50]} 35. Rb5 {[%clk 0:01:25]}  a6 {[%clk 0:00:50]} 36. Ra5 {[%clk 0:01:25]}  Rcf8 {[%clk 0:00:38]} 37. Raa1 {[%clk 0:01:24]}  Qh4 {[%clk 0:00:26]} 38. Qf2 {[%clk 0:01:21]}  Qxf2+ {[%clk 0:00:24]} 39. Rxf2 {[%clk 0:01:22]}  Bg5 {[%clk 0:00:24]} 40. Ra3 {[%clk 0:01:15]}  Rc8 {[%clk 0:00:19]} 41. Rc2 {[%clk 0:01:14]}  Kg7 {[%clk 0:00:20]} 42. Rb3 {[%clk 0:01:08]}  hxg4 {[%clk 0:00:17]} 43. hxg4 {[%clk 0:01:09]}  Bd8 {[%clk 0:00:09]} 44. Nb4 {[%clk 0:01:03]}  Ba5 {[%clk 0:00:08]} 45. Nd3 {[%clk 0:01:04]}  Re7 {[%clk 0:00:07]} 46. Rcb2 {[%clk 0:01:02]}  Rcc7 {[%clk 0:00:07]} 47. Ra2 {[%clk 0:00:58]}  Bc3 {[%clk 0:00:07]} 48. Ra4 {[%clk 0:00:58]}  Kf6 {[%clk 0:00:07]} 49. Rb6+ {[%clk 0:00:57]}  Kf7 {[%clk 0:00:04]} 50. Rc4 {[%clk 0:00:55]}  Kg7 {[%clk 0:00:04]} 51. c6 {[%clk 0:00:55]}  Rxc6 {[%clk 0:00:04]} 52. Rcxc6 {[%clk 0:00:53]}  bxc6 {[%clk 0:00:05]} 53. Rxa6 {[%clk 0:00:54]}  Rb7 {[%clk 0:00:03]} 54. Rxc6 {[%clk 0:00:53]}  Rb1 {[%clk 0:00:03]} 55. Kh3 {[%clk 0:00:53]}  Rf1 {[%clk 0:00:02]} 56. Nxe5 {[%clk 0:00:52]}  g5 {[%clk 0:00:03]} 57. Rg6+ {[%clk 0:00:51]}  Kf8 {[%clk 0:00:02]} 58. Rxg5 {[%clk 0:00:52]}  Bd2 {[%clk 0:00:02]} 59. Rf5+ {[%clk 0:00:52]}  Kg7 {[%clk 0:00:02]} 60. g5 {[%clk 0:00:50]}  Be3 {[%clk 0:00:02]} 61. Ng4 {[%clk 0:00:49]}  Rh1+ {[%clk 0:00:02]} 62. Kg2 {[%clk 0:00:49]}  Rg1+ {[%clk 0:00:02]} 63. Kh2 {[%clk 0:00:50]}  Re1 {[%clk 0:00:02]} 64. Rd5 {[%clk 0:00:47]}  Bf4+ {[%clk 0:00:02]} 65. Kg2 {[%clk 0:00:47]}  Re2+ {[%clk 0:00:03]} 66. Kf1 {[%clk 0:00:45]}  Rd2 {[%clk 0:00:03]} 67. Nf6 {[%clk 0:00:43]}  Be3 {[%clk 0:00:02]} 68. Ng4 {[%clk 0:00:42]}  Bf4 {[%clk 0:00:02]} 69. e5 {[%clk 0:00:41]}  d3 {[%clk 0:00:02]} 70. e6 {[%clk 0:00:41]}  Rd1+ {[%clk 0:00:03]} 71. Kg2 {[%clk 0:00:41]}  Rd2+ {[%clk 0:00:03]} 72. Kh3 {[%clk 0:00:41]}  Kf8 {[%clk 0:00:04]} 73. Rd7 {[%clk 0:00:39]}  Bxg5 {[%clk 0:00:04]} 74. Ne5 {[%clk 0:00:38]}  Ke8 {[%clk 0:00:04]} 75. Kg4 {[%clk 0:00:35]}  Bf6 {[%clk 0:00:04]} 76. Nf7 {[%clk 0:00:34]}  Rg2+ {[%clk 0:00:04]} 77. Kf5 {[%clk 0:00:34]}  d2 {[%clk 0:00:04]} 78. Kxf6 {[%clk 0:00:32]}  d1=Q {[%clk 0:00:00]} 79. Rxd1 {[%clk 0:00:31]} 1-0


[Site "https://www.chess.com"]

[Event "Titled Tuesday Blitz May 16 Early 2023"]
[White "Fan_Of_Chucky"]
[Black "Skliarov, Viktor"]
[BlackFideId "14106736"]
[WhiteElo "2371"]
[BlackElo "2317"]
[Result "1/2-1/2"]
[Round "05"]
[TimeControl "180+2"]
[Date "2023.05.16"]
[WhiteClock "0:02:36"]
[BlackClock "0:01:41"]

1. d4 {[%clk 0:02:56]}  Nf6 {[%clk 0:02:58]} 2. c4 {[%clk 0:02:56]}  e6 {[%clk 0:02:58]} 3. Nf3 {[%clk 0:02:55]}  c5 {[%clk 0:02:56]} 4. d5 {[%clk 0:02:50]}  exd5 {[%clk 0:02:57]} 5. cxd5 {[%clk 0:02:50]}  d6 {[%clk 0:02:55]} 6. Nc3 {[%clk 0:02:50]}  g6 {[%clk 0:02:53]} 7. Bf4 {[%clk 0:02:50]}  a6 {[%clk 0:02:50]} 8. e4 {[%clk 0:02:50]}  Bg7 {[%clk 0:02:47]} 9. Qa4+ {[%clk 0:02:47]}  Bd7 {[%clk 0:02:15]} 10. Qb3 {[%clk 0:02:47]}  Bc8 {[%clk 0:01:54]} 11. Qa4+ {[%clk 0:02:46]}  Bd7 {[%clk 0:01:41]} 12. Qb3 {[%clk 0:02:46]}  Bc8 {[%clk 0:01:41]} 13. Qa4+ {[%clk 0:02:36]} 1/2-1/2


[Site "https://www.chess.com"]